fUST/lending_fUST_20240621
["ID","MTS","AMOUNT","RATE_DAILY","PERIOD"]
[329992191,1718903449720,-151.0,0.00055068,120]
[329992192,1718903449728,-151.0,0.00055068,120]
[329992193,1718903449738,-500.0,0.00055068,120]
[329992194,1718903449748,-500.0,0.00055068,120]
[329992195,1718903449759,-500.0,0.00055068,120]
[329992196,1718903449772,-500.0,0.00055068,120]
[329992197,1718903449781,-981.24,0.00055068,120]
[329992198,1718903449790,-500.0,0.00055068,120]
[329992199,1718903449800,-151.0,0.00055068,120]
[329992200,1718903449808,-2586.17,0.00055068,120]
[329992201,1718903449819,-151.0,0.00055068,120]
[329992202,1718903449828,-183.910664,0.00055068,120]
[329992203,1718903449837,-500.0,0.00055068,60]
[329992204,1718903449847,-500.0,0.00055068,120]
[329992205,1718903449856,-500.0,0.00055068,120]
[329992206,1718903449865,-500.0,0.00055068,120]
[329992207,1718903449874,-151.0,0.00055068,120]
[329992208,1718903449883,-500.0,0.00055068,120]
[329992209,1718903449892,-151.0,0.00055068,120]
[329992210,1718903449901,-500.0,0.00055068,120]
[329992211,1718903449910,-500.0,0.00055068,120]
[329992212,1718903449919,-500.0,0.00055068,7]
[329992213,1718903449928,-500.0,0.00055068,120]
[329992214,1718903449938,-500.0,0.00055068,120]
[329992215,1718903449947,-346.90343158,0.00055068,120]
[329992216,1718903449956,-500.0,0.00055068,30]
[329992217,1718903450036,-500.0,0.00055068,120]
[329992218,1718903450046,-1210.719239,0.00055068,120]
[329992219,1718903450060,-4330.86,0.00055068,120]
[329992220,1718903450082,-1210.719239,0.00055068,120]
[329992221,1718903450094,-500.0,0.00055068,120]
[329992222,1718903450104,-500.0,0.00055068,120]
[329992223,1718903450113,-500.0,0.00055068,120]
[329992224,1718903450122,-500.0,0.00055068,120]
[329992225,1718903450131,-500.0,0.00055068,120]
[329992226,1718903450141,-1210.719239,0.00055068,120]
[329992227,1718903450150,-500.0,0.00055068,2]
[329992228,1718903450160,-1210.719239,0.00055068,120]
[329992229,1718903450169,-500.0,0.00055068,120]
[329992230,1718903450178,-500.0,0.00055068,120]
[329992231,1718903450187,-222.654988,0.00055068,120]
[329992232,1718903450196,-222.654988,0.00055068,120]
[329992233,1718903450206,-222.654988,0.00055068,120]
[329992234,1718903450219,-222.654988,0.00055068,120]
[329992235,1718903450228,-222.654988,0.00055068,120]
[329992236,1718903450238,-222.654988,0.00055068,120]
[329992237,1718903450247,-500.0,0.00055134,2]
[329992238,1718903450258,-265.82,0.00055134,2]
[329992239,1718903450266,-475.38461513,0.000552,120]
[329992240,1718903450275,-475.38461513,0.000552,120]
[329992241,1718903450284,-475.38461513,0.000552,120]
[329992242,1718903450294,-475.38461513,0.000552,120]
[329992243,1718903450303,-475.38461513,0.000552,120]
[329992244,1718903450312,-475.38461513,0.000552,120]
[329992245,1718903450322,-475.38461513,0.000552,120]
[329992246,1718903450332,-475.38461513,0.000552,120]
[329992247,1718903450341,-475.38461513,0.000552,120]
[329992248,1718903450350,-475.38461513,0.000552,120]
[329992249,1718903450360,-475.38461513,0.000552,120]
[329992250,1718903450369,-475.38461513,0.000552,120]
[329992251,1718903450379,-475.38461513,0.000552,120]
[329992252,1718903450388,-475.38461513,0.000552,120]
[329992253,1718903450398,-475.38461513,0.000552,120]
[329992254,1718903450407,-475.38461513,0.000552,120]
[329992255,1718903450417,-475.38461513,0.000552,120]
[329992256,1718903450427,-475.38461513,0.000552,120]
[329992257,1718903450437,-475.38461513,0.000552,120]
[329992258,1718903450447,-475.88,0.000552,120]
[329992259,1718903450457,-1901.61346052,0.000552,120]
[329992260,1718903450468,-1901.61346052,0.000552,120]
[329992261,1718903450477,-1901.61346052,0.000552,120]
[329992262,1718903450486,-1901.61346052,0.000552,120]
[329992263,1718903450496,-1901.61346052,0.000552,120]
[329992264,1718903450507,-1901.61346052,0.000552,120]
[329992265,1718903450517,-1901.61346052,0.000552,120]
[329992266,1718903450526,-1901.61346052,0.000552,120]
[329992267,1718903450535,-1901.61346052,0.000552,120]
[329992268,1718903450545,-1901.61346052,0.000552,120]
[329992269,1718903450554,-1901.61346052,0.000552,120]
[329992270,1718903450564,-1901.61346052,0.000552,120]
[329992271,1718903450573,-1901.61346052,0.000552,120]
[329992272,1718903450582,-1901.61346052,0.000552,120]
[329992273,1718903450592,-1901.61346052,0.000552,120]
[329992274,1718903450601,-1901.61346052,0.000552,120]
[329992275,1718903450612,-1901.61346052,0.000552,120]
[329992276,1718903450621,-523.87829508,0.000552,120]
[329992277,1718903450636,-1377.73516544,0.000552,120]
[329992278,1718903450646,-271.62,0.000552,120]
[329992279,1718903450656,-155.14199945,0.000552,120]
[329992280,1718903450666,-155.14199945,0.000552,120]
[329992281,1718903450676,-155.14199945,0.000552,120]
[329992282,1718903450686,-155.14199945,0.000552,120]
[329992283,1718903450696,-155.14199945,0.000552,120]
[329992284,1718903450706,-155.14199945,0.000552,120]
[329992285,1718903450716,-160.0,0.00055293,3]
[329992286,1718903450725,-151.0,0.00055299,120]
[329992287,1718903450734,-151.0,0.00055299,120]
[329992288,1718903450743,-4777.498813,0.00055299,120]
[329992289,1718903450754,-4777.498813,0.00055299,120]
[329992290,1718903450765,-1340.079762,0.00055299,120]
[329992291,1718903450777,-1340.079762,0.00055299,120]
[329992292,1718903450787,-12322.63568786,0.000553,120]
[329992293,1718903450800,-2518.05196813,0.000553,120]
[329992294,1718903450811,-151.0,0.000553,120]
[329992295,1718903450820,-241.50318,0.000553,120]
[329992296,1718903450829,-241.50318,0.000553,120]
[329992297,1718903450838,-158.668173,0.000553,120]
[329992298,1718903450850,-158.668173,0.000553,120]
[329992299,1718903450860,-655.172565,0.000553,120]
[329992300,1718903450869,-151.0,0.000553,120]
[329992301,1718903450878,-151.0,0.000553,120]
[329992302,1718903450887,-4250.158192,0.00055341,120]
[329992303,1718903450897,-4250.158192,0.00055341,120]
[329992304,1718903450907,-151.0,0.00055341,120]
[329992305,1718903450916,-367.826001,0.00055341,120]
[329992306,1718903450925,-367.826001,0.00055341,120]
[329992307,1718903450935,-1210.719239,0.00055341,120]
[329992308,1718903450944,-1210.719239,0.00055341,120]
[329992309,1718903450953,-196.153727,0.00055342,120]
[329992310,1718903450963,-196.153727,0.00055342,120]
[329992311,1718903450972,-151.0,0.00055342,120]
[329992312,1718903450981,-151.0,0.00055342,120]
[329992313,1718903450990,-151.0,0.00055342,120]
[329992314,1718903450999,-151.0,0.00055342,120]
[329992315,1718903451009,-334.46248917,0.00055342,120]
[329992316,1718903451018,-151.0,0.00055342,30]
[329992317,1718903451028,-151.0,0.00055342,30]
[329992318,1718903451038,-151.0,0.00055342,30]
[329992319,1718903451047,-151.0,0.00055342,30]
[329992320,1718903451057,-151.0,0.00055342,30]
[329992321,1718903451068,-151.0,0.00055342,30]
[329992322,1718903451078,-151.0,0.00055342,30]
[329992323,1718903451087,-151.0,0.00055342,30]
[329992324,1718903451096,-170.622398,0.00055342,30]
[329992325,1718903451107,-500.0,0.00055342,120]
[329992326,1718903451119,-500.0,0.00055342,120]
[329992327,1718903451128,-250.0,0.00055342,120]
[329992328,1718903451138,-500.0,0.00055342,120]
[329992329,1718903451148,-151.0,0.00055342,120]
[329992330,1718903451157,-151.0,0.00055342,120]
[329992331,1718903451167,-209.601166,0.00055342,120]
[329992332,1718903451176,-151.0,0.00055342,120]
[329992333,1718903451185,-151.0,0.00055342,120]
[329992334,1718903451194,-155.0924,0.00055342,120]
[329992335,1718903451203,-500.0,0.00055342,120]
[329992336,1718903451212,-500.0,0.00055342,120]
[329992337,1718903451221,-500.0,0.00055342,120]
[329992338,1718903451231,-500.0,0.00055342,120]
[329992339,1718903451240,-519.96682912,0.00055342,120]
[329992340,1718903451249,-774.5,0.00055342,120]
[329992341,1718903451260,-516.28431685,0.00055342,120]
[329992342,1718903451269,-158.742791,0.00055342,120]
[329992343,1718903451279,-158.742791,0.00055342,120]
[329992344,1718903451288,-500.0,0.00055342,120]
[329992345,1718903451298,-158.742791,0.00055342,120]
[329992346,1718903451307,-158.742791,0.00055342,120]
[329992347,1718903451317,-500.0,0.00055342,120]
[329992348,1718903451326,-500.0,0.00055342,120]
[329992349,1718903451335,-500.45600473,0.00055342,120]
[329992350,1718903451344,-500.0,0.00055342,120]
[329992351,1718903451354,-254.462815,0.00055342,120]
[329992352,1718903451363,-254.462815,0.00055342,120]
[329992353,1718903451437,-254.462815,0.00055342,120]
[329992354,1718903451446,-254.462815,0.00055342,120]
[329992355,1718903451456,-502.53192493,0.00055342,120]
[329992356,1718903451465,-500.0,0.00055342,120]
[329992357,1718903451475,-500.0,0.00055342,120]
[329992358,1718903451485,-516.28598632,0.00055342,120]
[329992359,1718903451494,-372.31175217,0.00055342,120]
[329992360,1718903451504,-500.0,0.00055342,120]
[329992361,1718903451515,-500.0,0.00055342,120]
[329992362,1718903451525,-200.0,0.00055342,7]
[329992363,1718903451535,-1494.48,0.00055342,120]
[329992364,1718903451544,-500.0,0.00055342,120]
[329992365,1718903451553,-500.0,0.00055342,120]
[329992366,1718903451562,-500.0,0.00055342,120]
[329992367,1718903451572,-2227.27,0.00055342,120]
[329992368,1718903451581,-500.0,0.00055342,120]
[329992369,1718903451592,-500.0,0.00055342,120]
[329992370,1718903451601,-500.0,0.00055342,120]
[329992371,1718903451611,-500.0,0.00055342,120]
[329992372,1718903451620,-151.0,0.00055342,120]
[329992373,1718903451629,-151.0,0.00055342,120]
[329992374,1718903451639,-500.0,0.00055342,120]
[329992375,1718903451647,-602.95,0.00055342,2]
[329992376,1718903451657,-500.0,0.00055342,120]
[329992377,1718903451667,-241.50318,0.00055342,120]
[329992378,1718903451676,-241.50318,0.00055342,120]
[329992379,1718903451686,-508.05183918,0.00055342,120]
[329992380,1718903451695,-241.50318,0.00055342,120]
[329992381,1718903451705,-241.50318,0.00055342,120]
[329992382,1718903451714,-158.668173,0.00055342,120]
[329992383,1718903451723,-158.668173,0.00055342,120]
[329992384,1718903451733,-158.668173,0.00055342,120]
[329992385,1718903451742,-158.668173,0.00055342,120]
[329992386,1718903451751,-500.0,0.00055342,120]
[329992387,1718903451769,-655.172565,0.00055342,120]
[329992388,1718903451778,-655.172565,0.00055342,120]
[329992389,1718903451787,-500.0,0.00055342,120]
[329992390,1718903451797,-500.0,0.00055342,120]
[329992391,1718903451807,-500.0,0.00055342,120]
[329992392,1718903451817,-151.0,0.00055342,120]
[329992393,1718903451826,-151.0,0.00055342,120]
[329992394,1718903451836,-569.7004604,0.00055342,120]
[329992395,1718903451847,-151.0,0.00055342,120]
[329992396,1718903451856,-162.787307,0.00055342,120]
[329992397,1718903451866,-500.0,0.00055342,120]
[329992398,1718903451876,-500.0,0.00055342,120]
[329992399,1718903451885,-3508.52,0.00055342,60]
[329992400,1718903451894,-500.0,0.00055342,120]
[329992401,1718903451904,-500.0,0.00055342,120]
[329992402,1718903451913,-500.0,0.00055342,120]
[329992403,1718903451922,-475.73396396,0.00055342,120]
[329992404,1718903451932,-500.0,0.00055342,120]
[329992405,1718903451941,-500.0,0.00055342,120]
[329992406,1718903451950,-500.0,0.00055342,120]
[329992407,1718903451960,-500.0,0.00055342,120]
[329992408,1718903451969,-4777.498813,0.00055342,120]
[329992409,1718903451978,-4777.498813,0.00055342,120]
[329992410,1718903451988,-1211.25901329,0.00055342,120]
[329992411,1718903452002,-1318.0,0.00055342,120]
[329992412,1718903452016,-2248.23979971,0.00055342,120]
[329992413,1718903452026,-4777.498813,0.00055342,120]
[329992414,1718903452035,-500.0,0.00055342,120]
[329992415,1718903452045,-500.0,0.00055342,120]
[329992416,1718903452054,-500.0,0.00055342,120]
[329992417,1718903452063,-543.13,0.00055342,120]
[329992418,1718903452072,-500.0,0.00055342,120]
[329992419,1718903452081,-500.0,0.00055342,120]
[329992420,1718903452091,-1311.44,0.00055342,120]
[329992421,1718903452099,-500.0,0.00055342,120]
[329992422,1718903452109,-508.25340981,0.00055342,120]
[329992423,1718903452118,-500.0,0.00055342,120]
[329992424,1718903452127,-500.0,0.00055342,120]
[329992425,1718903452136,-154.236462,0.00055342,120]
[329992426,1718903452145,-500.0,0.00055342,120]
[329992427,1718903452154,-500.0,0.00055342,120]
[329992428,1718903452164,-500.0,0.00055342,120]
[329992429,1718903452173,-500.0,0.00055342,120]
[329992430,1718903452182,-500.0,0.00055342,120]
[329992431,1718903452191,-500.0,0.00055342,120]
[329992432,1718903452200,-500.0,0.00055342,120]
[329992433,1718903452210,-1340.079762,0.00055342,120]
[329992434,1718903452219,-1340.079762,0.00055342,120]
[329992435,1718903452229,-500.0,0.00055342,120]
[329992436,1718903452238,-1340.079762,0.00055342,120]
[329992437,1718903452248,-1340.079762,0.00055342,120]
[329992438,1718903452261,-500.0,0.00055342,120]
[329992439,1718903452270,-17111.72,0.00055342,120]
[329992440,1718903452279,-512.68982664,0.00055342,120]
[329992441,1718903452288,-500.0,0.00055342,120]
[329992442,1718903452297,-4250.158192,0.00055342,120]
[329992443,1718903452310,-4250.158192,0.00055342,120]
[329992444,1718903452319,-1541.51,0.00055342,120]
[329992445,1718903452329,-1271.0,0.00055342,21]
[329992446,1718903452338,-4250.158192,0.00055342,120]
[329992447,1718903452347,-4250.158192,0.00055342,120]
[329992448,1718903452357,-500.0,0.00055342,120]
[329992449,1718903452366,-500.0,0.00055342,120]
[329992450,1718903452375,-500.0,0.00055342,120]
[329992451,1718903452384,-500.0,0.00055342,120]
[329992452,1718903452394,-500.0,0.00055342,120]
[329992453,1718903452404,-2471.46,0.00055342,120]
[329992454,1718903452413,-500.0,0.00055342,120]
[329992455,1718903452422,-500.0,0.00055342,120]
[329992456,1718903452432,-500.0,0.00055342,120]
[329992457,1718903452441,-500.0,0.00055342,120]
[329992458,1718903452450,-593.66,0.00055342,120]
[329992459,1718903452460,-151.0,0.00055342,120]
[329992460,1718903452469,-500.0,0.00055342,120]
[329992461,1718903452478,-151.0,0.00055342,120]
[329992462,1718903452488,-2183.6,0.00055342,120]
[329992463,1718903452499,-367.826001,0.00055342,120]
[329992464,1718903452512,-367.826001,0.00055342,120]
[329992465,1718903452521,-500.0,0.00055342,120]
[329992466,1718903452530,-367.826001,0.00055342,120]
[329992467,1718903452539,-367.826001,0.00055342,120]
[329992468,1718903452549,-446.60816203,0.00055342,120]
[329992469,1718903452558,-500.0,0.00055342,90]
[329992470,1718903452567,-500.0,0.00055342,120]
[329992471,1718903452577,-500.0,0.00055342,120]
[329992472,1718903452587,-500.0,0.00055342,120]
[329992473,1718903452597,-500.0,0.00055342,120]
[329992474,1718903452607,-213.61824454,0.00055342,120]
[329992475,1718903452616,-500.0,0.00055342,120]
[329992476,1718903452626,-500.0,0.00055342,120]
[329992477,1718903452636,-382.28915241,0.00055342,120]
[329992478,1718903452706,-500.0,0.00055342,120]
[329992479,1718903452716,-1888.23,0.00055342,120]
[329992480,1718903452726,-500.0,0.00055342,120]
[329992481,1718903452736,-500.0,0.00055342,120]
[329992482,1718903452746,-500.0,0.00055342,120]
[329992483,1718903452757,-500.0,0.00055342,120]
[329992484,1718903452768,-500.0,0.00055342,120]
[329992485,1718903452782,-500.0,0.00055342,7]
[329992486,1718903452791,-523.54671879,0.00055342,120]
[329992487,1718903452801,-500.0,0.00055342,120]
[329992488,1718903452812,-500.0,0.00055342,120]
[329992489,1718903452822,-500.0,0.00055342,120]
[329992490,1718903452832,-500.0,0.00055342,120]
[329992491,1718903452842,-500.0,0.00055342,120]
[329992492,1718903452853,-2514.28258073,0.00055342,120]
[329992509,1718904427169,-165.324914,0.00021096,2]
[329992510,1718904427188,-622.15365701,0.00026015,2]
[329992511,1718904427207,-166.713034,0.00028664,2]
[329992512,1718904427226,-226.2066056,0.0002925,2]
[329992513,1718904427352,-250.0,0.0002935,2]
[329992514,1718904427372,-178.2705071,0.00029735,2]
[329992515,1718904427396,-84.44523714,0.00030617,2]
[329992518,1718904553126,-165.326996,0.00021096,2]
[329992519,1718904570501,-82.26779686,0.00030617,2]
[329992520,1718904570534,-166.713034,0.00032571,2]
[329992521,1718904570564,-153.0,0.00033066,2]
[329992522,1718904570595,-53.05351206,0.00033484,2]
[329992523,1718904570635,-346.94648794,0.00033484,2]
[329992524,1718904570670,-108.08785498,0.00033484,2]
[329992525,1718904570704,-218.91214502,0.00033484,2]
[329992526,1718904570735,-236.1221979,0.00033484,7]
[329992527,1718904570770,-263.8778021,0.00033484,7]
[329992528,1718904570801,-191.15654082,0.00033484,7]
[329992529,1718904570837,-96.78797918,0.00033484,7]
[329992530,1718904570867,-358.24636374,0.00033485,2]
[329992531,1718904570902,-214.13516156,0.00033485,2]
[329992532,1718904574129,-732.92563012,0.00033485,2]
[329992578,1718904632845,-400.0,0.00033484,2]
[329992581,1718904632997,-2961.70269058,0.00033485,2]
[329992582,1718904633015,-2204.696,0.00033485,2]
[329992583,1718904633027,-955.53996635,0.00033485,2]
[329992584,1718904633040,-7417.90139432,0.00033485,2]
[329992585,1718904633136,-4300.10184338,0.00033485,2]
[329992647,1718904638926,-4008.39733174,0.00033485,2]
[329992649,1718904638939,-788.08124786,0.00033485,2]
[329992651,1718904638951,-958.27237035,0.00033485,2]
[329992652,1718904638961,-216.9835311,0.00033888,2]
[329992654,1718904638970,-171.581266,0.0003528,2]
[329992656,1718904638981,-153.0,0.00049942,7]
[329992657,1718904638991,-153.0,0.00049942,7]
[329992658,1718904639000,-1796.21426784,0.00049968,28]
[329992659,1718904639012,-1500.0,0.0005,14]
[329992660,1718904639022,-165.326996,0.00050068,2]
[329992661,1718904639031,-167.35752979,0.00052799,2]
[329992662,1718904639041,-500.0,0.00052899,120]
[329992663,1718904639051,-500.0,0.00052899,120]
[329992664,1718904639062,-263.34544235,0.00052899,120]
[329992682,1718904640974,-236.65455765,0.00052899,120]
[329992684,1718904640986,-206.29475934,0.00052899,120]
[329992686,1718904640997,-500.0,0.00052899,120]
[329992687,1718904641007,-551.17345985,0.00052899,120]
[329992688,1718904641018,-500.0,0.00052899,120]
[329992689,1718904641028,-500.0,0.00052899,120]
[329992690,1718904641038,-500.0,0.00052899,120]
[329992691,1718904641048,-500.0,0.00052899,120]
[329992692,1718904641058,-500.0,0.00052899,120]
[329992693,1718904641068,-500.0,0.00052899,120]
[329992694,1718904641077,-500.0,0.00052899,120]
[329992695,1718904641087,-500.0,0.00052899,120]
[329992696,1718904641097,-500.0,0.00052899,120]
[329992697,1718904641107,-500.0,0.00052899,120]
[329992698,1718904641117,-500.0,0.00052899,120]
[329992699,1718904641127,-263.68097244,0.00052899,120]
[329992700,1718904641140,-335.5871626,0.00052899,120]
[329992701,1718904641150,-284.71803163,0.00052899,4]
[329992702,1718904641160,-26688.0,0.000529,120]
[329992703,1718904641170,-2527.18,0.00053,60]
[329992704,1718904641181,-495.75026012,0.00053242,4]
[329992705,1718904641191,-167.35752978,0.00053431,2]
[329992706,1718904641201,-2024.0,0.00054,60]
[329992707,1718904641212,-167.35752978,0.00054062,2]
[329992708,1718904641227,-14595.57,0.0005448,120]
[329992709,1718904641236,-8866.0,0.000545,120]
[329992710,1718904641246,-167.35752978,0.00054694,2]
[329992711,1718904641258,-185.0,0.00054765,62]
[329992712,1718904641267,-152.0,0.00054765,62]
[329992713,1718904641277,-150.5,0.00054765,62]
[329992714,1718904641288,-150.5,0.00054765,62]
[329992715,1718904641299,-150.5,0.00054765,62]
[329992716,1718904641309,-1707.18,0.00054774,3]
[329992717,1718904641319,-2712.9,0.00054774,3]
[329992718,1718904641329,-185.0,0.00054775,62]
[329992719,1718904641339,-150.5,0.00054775,62]
[329992720,1718904641349,-152.0,0.00054775,62]
[329992721,1718904641359,-150.5,0.00054775,62]
[329992722,1718904641370,-150.5,0.00054775,62]
[329992723,1718904641380,-3255.48,0.00054784,3]
[329992724,1718904641389,-185.0,0.00054785,62]
[329992725,1718904641399,-150.5,0.00054785,62]
[329992726,1718904641408,-152.0,0.00054785,62]
[329992727,1718904641418,-150.5,0.00054785,62]
[329992728,1718904641428,-150.5,0.00054785,62]
[329992729,1718904641438,-1940.21209947,0.00054794,61]
[329992730,1718904641449,-500.0,0.00054794,120]
[329992731,1718904641459,-305.31811658,0.00054794,120]
[329992732,1718904641468,-610.35752095,0.00054794,120]
[329992733,1718904641478,-500.0,0.00054794,120]
[329992734,1718904641488,-505.07086823,0.00054794,120]
[329992735,1718904641497,-505.69968282,0.00054794,120]
[329992736,1718904641508,-500.0,0.00054794,120]
[329992737,1718904641518,-500.0,0.00054794,120]
[329992738,1718904641528,-692.22,0.00054794,120]
[329992739,1718904641537,-502.10005076,0.00054794,120]
[329992740,1718904641547,-424.53926642,0.00054794,120]
[329992741,1718904641557,-500.0,0.00054794,2]
[329992742,1718904641567,-500.0,0.00054794,120]
[329992743,1718904641576,-500.0,0.00054794,120]
[329992744,1718904641586,-324.76054633,0.00054794,120]
[329992745,1718904641596,-395.30376232,0.00054794,120]
[329992746,1718904641606,-500.0,0.00054794,120]
[329992747,1718904641616,-512.28071716,0.00054794,120]
[329992748,1718904641626,-500.65665414,0.00054794,120]
[329992749,1718904641636,-1000.0,0.00054794,120]
[329992750,1718904641645,-394.29355289,0.00054794,120]
[329992751,1718904641655,-500.0,0.00054794,120]
[329992752,1718904641665,-250.42539207,0.00054794,120]
[329992753,1718904641717,-259.10566323,0.00054794,120]
[329992754,1718904641727,-243.90622074,0.00054794,120]
[329992755,1718904641739,-271.65121321,0.00054794,120]
[329992756,1718904641750,-500.0,0.00054794,120]
[329992757,1718904641761,-512.80681564,0.00054794,120]
[329992758,1718904641772,-500.0,0.00054794,120]
[329992759,1718904641782,-500.0,0.00054794,120]
[329992760,1718904641792,-500.92444998,0.00054794,120]
[329992761,1718904641802,-500.0,0.00054794,120]
[329992762,1718904641812,-423.51378062,0.00054794,120]
[329992763,1718904641823,-384.53674271,0.00054794,120]
[329992764,1718904641836,-115.46325729,0.00054794,120]
[329992765,1718904641847,-500.0,0.00054794,120]
[329992766,1718904641856,-200.0,0.00054794,7]
[329992767,1718904641866,-519.68818445,0.00054794,120]
[329992768,1718904641876,-500.0,0.00054794,120]
[329992769,1718904641886,-500.0,0.00054794,120]
[329992770,1718904641895,-500.0,0.00054794,120]
[329992771,1718904641905,-500.0,0.00054794,120]
[329992772,1718904641915,-553.18832344,0.00054794,120]
[329992773,1718904641926,-501.6089746,0.00054794,120]
[329992774,1718904641935,-500.0,0.00054794,20]
[329992775,1718904641946,-510.10146003,0.00054794,120]
[329992776,1718904641956,-514.68569112,0.00054794,120]
[329992777,1718904641966,-500.0,0.00054794,120]
[329992778,1718904641976,-500.0,0.00054794,120]
[329992779,1718904641986,-504.61017189,0.00054794,120]
[329992780,1718904641996,-500.0,0.00054794,120]
[329992781,1718904642007,-527.58,0.00054794,2]
[329992782,1718904642017,-507.89110721,0.00054794,120]
[329992783,1718904642028,-511.3485843,0.00054794,120]
[329992784,1718904642038,-500.0,0.00054794,120]
[329992785,1718904642048,-510.77573054,0.00054794,120]
[329992786,1718904642059,-500.6033172,0.00054794,120]
[329992787,1718904642069,-503.28110568,0.00054794,120]
[329992788,1718904642078,-500.0,0.00054794,120]
[329992789,1718904642089,-529.27247846,0.00054794,120]
[329992790,1718904642099,-500.0,0.00054794,120]
[329992791,1718904642110,-500.0,0.00054794,120]
[329992792,1718904642120,-501.59501721,0.00054794,120]
[329992793,1718904642135,-501.8829514,0.00054794,120]
[329992794,1718904642145,-500.0,0.00054794,120]
[329992795,1718904642155,-500.84052394,0.00054794,120]
[329992796,1718904642165,-3090.79,0.00054794,60]
[329992797,1718904642176,-500.0,0.00054794,120]
[329992798,1718904642186,-500.0,0.00054794,120]
[329992799,1718904642196,-500.0,0.00054794,120]
[329992800,1718904642206,-500.0,0.00054794,30]
[329992801,1718904642217,-500.0,0.00054794,120]
[329992802,1718904642227,-500.0,0.00054794,120]
[329992803,1718904642237,-500.0,0.00054794,120]
[329992804,1718904642247,-500.0,0.00054794,120]
[329992805,1718904642257,-500.0,0.00054794,120]
[329992806,1718904642267,-500.0,0.00054794,120]
[329992807,1718904642276,-500.0,0.00054794,2]
[329992808,1718904642286,-500.0,0.00054794,120]
[329992809,1718904642296,-500.0,0.00054794,120]
[329992810,1718904642307,-500.0,0.00054794,2]
[329992811,1718904642317,-500.0,0.00054794,120]
[329992812,1718904642327,-500.0,0.00054794,120]
[329992813,1718904642337,-500.0,0.00054794,120]
[329992814,1718904642348,-500.0,0.00054794,120]
[329992815,1718904642357,-500.0,0.00054794,120]
[329992816,1718904642367,-500.0,0.00054794,120]
[329992817,1718904642377,-500.0,0.00054794,120]
[329992818,1718904642388,-504.64613082,0.00054794,120]
[329992819,1718904642398,-500.0,0.00054794,120]
[329992820,1718904642408,-500.0,0.00054794,120]
[329992821,1718904642418,-500.0,0.00054794,120]
[329992822,1718904642427,-500.0,0.00054794,120]
[329992823,1718904642437,-501.43052701,0.00054794,120]
[329992824,1718904642447,-500.0,0.00054794,120]
[329992825,1718904642458,-501.16654871,0.00054794,120]
[329992826,1718904642467,-524.29620069,0.00054794,120]
[329992827,1718904642477,-500.0,0.00054794,120]
[329992828,1718904642487,-500.0,0.00054794,120]
[329992829,1718904642497,-500.0,0.00054794,120]
[329992830,1718904642509,-500.0,0.00054794,120]
[329992831,1718904642520,-500.0,0.00054794,120]
[329992832,1718904642530,-500.0,0.00054794,120]
[329992833,1718904642540,-503.50638434,0.00054794,120]
[329992834,1718904642551,-507.82239086,0.00054794,120]
[329992835,1718904642561,-500.0,0.00054794,120]
[329992836,1718904642571,-500.0,0.00054794,120]
[329992837,1718904642580,-500.0,0.00054794,120]
[329992838,1718904642591,-500.0,0.00054794,120]
[329992839,1718904642747,-503.82409226,0.00054794,120]